lending/lending_fUSD_20250406
["ID","MTS","AMOUNT","RATE_DAILY","PERIOD"]
[357256035,1743952238431,-212.0,0.00048006,2]
[357256036,1743952238442,-431027.8449959,0.00048006,2]
[357256410,1743952245464,-3.65222318,0.00048006,2]
[357256411,1743952245490,-15.4287462,0.00048006,2]
[357256412,1743952245502,-12372.04770002,0.00048006,2]
[357256413,1743952245513,-351.22539947,0.00048006,2]
[357256414,1743952246527,-5222.02551581,0.00048006,2]
[357256415,1743952246540,-1490.03243478,0.00048006,2]
[357256421,1743952490415,250.0,0.00019,2]
[357256423,1743953108626,49196.75475234,0.0002,2]
[357256424,1743953159148,-1428.36836348,0.0001995,2]
[357256425,1743953239101,-771.22213959,0.0001995,2]
[357256426,1743953241115,-984.34072371,0.0001995,2]
[357256427,1743953263615,-4205.56426535,0.0001995,2]
[357256428,1743953263642,-225.47906982,0.0001999,2]
[357256429,1743953263912,-108904.10368961,0.0002,2]
[357256430,1743953264497,-3909.83874322,0.0002,2]
[357256431,1743953264521,-521.20459195,0.0002,2]
[357256433,1743953309534,1451.58074963,0.000175,2]
[357256434,1743953326162,531.58290189,0.00028,60]
[357256441,1743953432639,-300.0,0.00021,2]
[357256442,1743953432649,-1810.78215614,0.000232,2]
[357256443,1743953432658,-3271.73189913,0.00024,2]
[357256485,1743953438265,-530.2981892,0.00024,2]
[357256486,1743953438275,-245.09545517,0.00024,5]
[357256539,1743953440734,-1912.56497917,0.00024,5]
[357256541,1743953440746,-797.6518777,0.00024,5]
[357256542,1743953440757,-1094.0,0.00024,5]
[357256545,1743953443836,-950.6881117,0.00024,5]
[357256546,1743953443845,-460.584467,0.0003511,30]
[357256547,1743953443875,-1014.17019827,0.0003511,30]
[357256548,1743953443887,-3509.99760018,0.0003511,30]
[357256552,1743953446714,-411.65585594,0.0003511,30]
[357256553,1743953446846,-638.0630422,0.0003511,30]
[357256554,1743953446878,-26.50614196,0.0003511,30]
[357256650,1743954293792,250.0,0.00019,2]
[357256651,1743954332590,327.76797816,0.00039497,120]
[357256652,1743954335120,-150.0,0.00034548,10]
[357256653,1743954335144,-1307.71047647,0.0003511,30]
[357256654,1743954441166,-603.6968461,0.0003511,30]
[357256655,1743954445209,-1990.50845844,0.0003511,30]
[357256656,1743954445233,-177.22919979,0.000365,2]
[357256657,1743954445258,-5921.02010648,0.000366,2]
[357256658,1743954448094,-2007.13594892,0.000366,2]
[357256659,1743954448116,-182.619,0.000366,45]
[357256660,1743954448138,-12043.23512646,0.00037,2]
[357256661,1743954556100,-756.04688054,0.00037,2]
[357256755,1743954637604,-366.2347122,0.000279,2]
[357256756,1743954637613,-92.06227646,0.00037,2]
[357256757,1743954637625,-312.44237025,0.00037,2]
[357257134,1743954646325,-168.49,0.00026849,2]
[357257135,1743954646335,-74498.18241922,0.00037,2]
[357257137,1743954646345,-1027.097089,0.000393,29]
[357257138,1743954646354,-963.64447812,0.00039497,2]
[357257139,1743954646363,-161.15,0.00043901,2]
[357257140,1743954646373,-213.73696593,0.000449,15]
[357257141,1743954646383,-3295.72,0.000449,2]
[357257142,1743954646392,-501.58752862,0.000449,65]
[357257143,1743954646402,-23900.0,0.00044994,2]
[357257144,1743954646411,-500.0,0.00044999,120]
[357257145,1743954646421,-500.0,0.00044999,120]
[357257146,1743954646431,-500.0,0.00044999,120]
[357257147,1743954646440,-500.0,0.00044999,120]
[357257148,1743954646451,-500.0,0.00044999,120]
[357257149,1743954646460,-500.0,0.00044999,120]
[357257150,1743954646471,-500.0,0.00044999,120]
[357257151,1743954646481,-500.0,0.00044999,120]
[357257152,1743954646490,-566.95670525,0.00044999,120]
[357257153,1743954646500,-500.0,0.00044999,120]
[357257154,1743954646510,-500.0,0.00044999,120]
[357257155,1743954646520,-500.0,0.00044999,120]
[357257156,1743954646530,-250.0,0.00044999,120]
[357257157,1743954646539,-500.0,0.00044999,120]
[357257158,1743954646550,-500.0,0.00044999,120]
[357257159,1743954646560,-500.0,0.00044999,120]
[357257160,1743954646570,-500.0,0.00044999,120]
[357257161,1743954646580,-500.0,0.00044999,120]
[357257162,1743954646590,-231.24444614,0.00044999,120]
[357257163,1743954646600,-350.0,0.00045,60]
[357257164,1743954646611,-133432.97577756,0.00045,2]
[357257165,1743954646622,-317.65631598,0.00045,2]
[357257166,1743954646632,-262.46,0.00045084,2]
[357257167,1743954646643,-200.0,0.00045207,2]
[357257168,1743954646654,-199.34,0.00045324,2]
[357257169,1743954646665,-1320.0,0.00045439,2]
[357257170,1743954646678,-156.22,0.00045737,120]
[357257171,1743954646688,-1000.0,0.00045938,2]
[357257172,1743954646699,-250.0,0.00046,60]
[357257173,1743954646709,-212.65,0.00046003,2]
[357257174,1743954646720,-200.0,0.00046053,2]
[357257175,1743954646730,-150.0,0.00046073,2]
[357257176,1743954646739,-150.0,0.00046221,7]
[357257177,1743954646749,-175.98,0.00046273,2]
[357257178,1743954646758,-250.0,0.00047,60]
[357257179,1743954646767,-221.92831305,0.00047,14]
[357257180,1743954646775,-29962.36,0.00047148,2]
[357257181,1743954646784,-262.46,0.00047339,2]
[357257182,1743954646793,-2215.52641747,0.000475,120]
[357257183,1743954646803,-162.41987646,0.0004789,15]
[357257184,1743954646813,-1772.92255086,0.000479,2]
[357257185,1743954646823,-151.0,0.0004798,14]
[357257186,1743954646833,-151.0,0.0004798,14]
[357257187,1743954646843,-231.914525,0.0004799,14]
[357257188,1743954646853,-231.914525,0.0004799,14]
[357257189,1743954646863,-151.0,0.0004799,14]
[357257190,1743954646877,-151.0,0.0004799,14]
[357257191,1743954646888,-151.0,0.0004799,14]
[357257192,1743954646898,-151.0,0.0004799,14]
[357257193,1743954646909,-169.929131,0.0004799,14]
[357257194,1743954646922,-151.0,0.0004799,14]
[357257195,1743954646932,-151.0,0.0004799,14]
[357257196,1743954646942,-172.005936,0.0004799,14]
[357257197,1743954646952,-172.005936,0.0004799,14]
[357257198,1743954646963,-172.005936,0.0004799,14]
[357257199,1743954646973,-172.005936,0.0004799,14]
[357257200,1743954646983,-151.814371,0.0004799,14]
[357257201,1743954646993,-151.991661,0.0004799,14]
[357257202,1743954647005,-157.018469,0.0004799,14]
[357257203,1743954647017,-152.540197,0.0004799,14]
[357257204,1743954647027,-310.654644,0.0004799,14]
[357257205,1743954647037,-151.0,0.0004799,14]
[357257206,1743954647047,-310.654644,0.0004799,14]
[357257207,1743954647057,-56311.7102666,0.0004799,4]
[357257208,1743954647067,-151.0,0.0004799,14]
[357257209,1743954647077,-151.0,0.0004799,14]
[357257210,1743954647087,-151.0,0.0004799,14]
[357257211,1743954647097,-151.0,0.0004799,14]
[357257212,1743954647107,-151.0,0.0004799,14]
[357257213,1743954647117,-250.0,0.00048,60]
[357257214,1743954647127,-8548.73805,0.00048,8]
[357257215,1743954647138,-85208.43476744,0.00048,2]
[357257218,1743955255015,41019.36919412,0.000195,2]
[357257219,1743955399631,831.91820414,0.00039495,120]
[357257220,1743955546163,-850.907315,0.000393,29]
[357257221,1743955546187,-150.0,0.0004,2]
[357257222,1743955546212,-150.0,0.00045,2]
[357257223,1743955546234,-159.49,0.00046509,2]
[357257224,1743955546256,-132.00262686,0.0004761,2]
[357257225,1743955627093,-367.98112523,0.00047622,2]
[357257226,1743955627114,-367.98112524,0.00047857,2]
[357257227,1743955627135,-440.41417107,0.000479,2]
[357257228,1743955627156,-439.82319171,0.00048,2]
[357257229,1743955632084,-331.21642554,0.00048,2]
[357257230,1743955635099,-1396.44580583,0.00048,2]
[357257231,1743955636085,-244.52409895,0.00048,2]
[357257232,1743955650124,-171.04699373,0.000479,2]
[357257233,1743955650145,-5617.25779503,0.00048,2]
[357257234,1743955831682,-2725.892929,0.000383,29]
[357257235,1743955831692,-1500.0,0.000388,29]
[357257236,1743955831702,-1476.847071,0.000393,29]
[357257403,1743955839852,-23.152929,0.000393,29]
[357257405,1743955839862,-308.41154422,0.000479,2]
[357257407,1743955839872,-1020.19627268,0.00048,2]
[357257444,1743955842707,160.53,0.00026849,2]
[357257445,1743955842739,-6137.67109013,0.00048,2]
[357257446,1743955842753,-576.0788265,0.00048,120]
[357257447,1743955842766,-200.0,0.00048,7]
[357257448,1743955842778,-561.36935225,0.00048335,2]
[357257449,1743955842793,-293.3720234,0.00048335,2]
[357257457,1743955843387,-648.34291089,0.00048335,2]
[357257458,1743955843479,-15.43399508,0.00048335,2]
[357257461,1743955845949,-3399.37802863,0.00048335,2]
[357257462,1743955845963,-18982.10368975,0.00048335,2]
[357257463,1743955845974,-150.0,0.00048383,2]
[357257464,1743955845985,-157.47,0.00048457,2]
[357257465,1743955845997,-166.11,0.0004847,2]
[357257466,1743955846008,-156.22,0.00048489,120]
[357257467,1743955846019,-1000.0,0.00048556,2]
[357257468,1743955846030,-212.65,0.00048607,2]
[357257469,1743955846041,-150.0,0.00048667,7]
[357257470,1743955846051,-161.74,0.00048877,2]
[357257471,1743955846062,-156.07,0.00049176,2]
[357257472,1743955846073,-1175.64989548,0.000494,120]
[357257473,1743955846084,-2031.94877448,0.000495,7]
[357257474,1743955846096,-2341.9861712,0.00049525,2]
[357257475,1743955846107,-3584.9782254,0.00049559,2]
[357257476,1743955846118,-177.246,0.00049593,87]
[357257477,1743955846129,-183.995,0.00049593,87]
[357257478,1743955846141,-1836.98950456,0.00049694,2]
[357257479,1743955846151,-6112.6011,0.0004978,2]
[357257480,1743955846162,-630.61,0.00049794,30]
[357257481,1743955846172,-1556.0,0.000498,13]
[357257482,1743955846183,-42936.0192,0.000498,2]
[357257483,1743955846194,-169.54865262,0.000498,28]
[357257484,1743955846205,-15024.0573091,0.0004989,4]
[357257485,1743955846216,-500.0,0.00049899,120]
[357257486,1743955846237,-500.0,0.00049899,120]
[357257487,1743955846251,-500.0,0.00049899,120]
[357257488,1743955846263,-500.0,0.00049899,120]
[357257489,1743955846276,-500.0,0.00049899,120]
[357257490,1743955846291,-500.0,0.00049899,120]
[357257491,1743955846303,-500.0,0.00049899,120]
[357257492,1743955846315,-583.74080597,0.00049899,120]
[357257493,1743955846327,-500.0,0.00049899,120]
[357257494,1743955846340,-500.0,0.00049899,120]
[357257495,1743955846351,-500.0,0.00049899,120]
[357257496,1743955846364,-450.0,0.00049899,120]
[357257497,1743955846376,-500.0,0.00049899,120]
[357257499,1743955846387,-209862.72033868,0.000499,7]
[357257501,1743955846398,-2000.0,0.0005,5]
[357257502,1743955846409,-150.0,0.0005,2]
[357257503,1743955846421,-2000.0,0.0005,120]
[357257504,1743955846433,-2000.0,0.00050039,8]
[357257505,1743955846446,-159.49,0.00050094,2]
[357257506,1743955846457,-157.47,0.0005088,2]
[357257516,1743955846655,-2643.61,0.00051,120]
[357257517,1743955846672,-1708.47597506,0.000518,120]
[357257518,1743955846683,-1000.0,0.0005199,2]
[357257519,1743955846693,-1500.0,0.00052,2]
[357257520,1743955846705,-1500.0,0.00052,30]
[357257521,1743955846715,-1500.0,0.00052,30]
[357257522,1743955846726,-1594.29,0.00052,30]
[357257523,1743955846736,-1500.0,0.00052,30]
[357257524,1743955846746,-1000.0,0.00052,120]
[357257525,1743955846756,-1000.0,0.00052,120]
[357257526,1743955846766,-157.47,0.00053303,2]
[357257527,1743955846776,-159.49,0.00053678,2]
[357257528,1743955846786,-175.98,0.0005391,2]
[357257529,1743955846797,-666.2971512,0.00054,120]
[357257530,1743955846808,-2643.61,0.000542,120]
[357257531,1743955846818,-162.41987644,0.00054525,15]
[357257532,1743955846829,-1000.0,0.00054625,120]
[357257533,1743955846838,-151.0,0.00054685,120]
[357257534,1743955846849,-15024.0573091,0.00054774,4]
[357257535,1743955846859,-13685.76309352,0.00054784,4]
[357257536,1743955846875,-721.94839973,0.00054784,4]
[357257539,1743956096148,250.0,0.00019,2]
[357257540,1743956097256,300.0,0.00021,2]
[357257541,1743956098336,350.0,0.00023,2]
[357257542,1743956618826,600.701685,0.0002,2]
[357257543,1743956673399,240.280674,0.0002,2]
[357257544,1743956708445,48098.487641,0.0002,2]
[357257545,1743956708473,50000.0,0.0002,2]
[357257546,1743956708503,50000.0,0.0002,2]
[357257547,1743956756223,-1429.79067173,0.0002,2]
[357257548,1743956828106,-161.63289857,0.0001995,2]
[357257549,1743956838133,-1464.80510004,0.0001995,2]
[357257550,1743956849105,-771.22792367,0.0001995,2]
[357257555,1743956964131,-786.2653045,0.0001995,2]
[357257556,1743956964152,-300.0,0.00019999,2]
[357257557,1743956964174,-211.94400591,0.0002,2]
[357257568,1743957031943,-828.67032862,0.0002,2]
[357257569,1743957031957,-3502.46317791,0.0002,2]
[357257570,1743957031970,-550.0,0.0002,2]
[357257571,1743957031985,-473.53398484,0.0002,2]
[357257572,1743957032097,-550.0,0.0002,2]
[357257573,1743957032111,-1199.03640389,0.0002,2]
[357257607,1743957037813,-2795.00242838,0.0002,2]
[357257608,1743957037867,-1195.50057753,0.0002,2]
[357257609,1743957037882,-5223.60000056,0.0002,2]
[357257610,1743957037897,-1774.1,0.0002,2]
[357257775,1743957040040,-2441.68379589,0.0002,2]
[357257825,1743957043370,-4999.71531347,0.0002,2]
[357257826,1743957043381,-167.6651329,0.000232,2]
[357257827,1743957043392,-250.0,0.00024371,2]
[357257828,1743957043403,-1883.51618869,0.00025,7]
[357257829,1743957043415,-157.96,0.00026849,2]
[357257830,1743957043426,-587.25707444,0.00033,2]
[357257833,1743957043436,-1942.15027669,0.00039498,2]
[357257835,1743957043446,-982.7349405,0.00041,5]
[357257837,1743957043456,-151.0,0.00045,120]
[357257839,1743957043467,-254.61,0.00045,14]
[357257840,1743957043478,-433.0,0.000471,2]
[357257841,1743957043488,-9999.99,0.000471,2]
[357257842,1743957043498,-150.99,0.000471,2]
[357257843,1743957043674,-645.74,0.000471,2]
[357257844,1743957043684,-155.03,0.000471,15]
[357257845,1743957043693,-159.56,0.000471,2]
[357257846,1743957043703,-250.0,0.00047494,2]
[357257847,1743957043713,-191.6396,0.000498,2]
[357257848,1743957043722,-1895.0208,0.000498,2]
[357257849,1743957043731,-500.0,0.00052,120]
[357257850,1743957043741,-808.637628,0.00052292,4]
[357257851,1743957043753,-184.0,0.00053,120]
[357257852,1743957043762,-500.0,0.00054,120]
[357257853,1743957043772,-5192.01109023,0.0005424,2]
[357257855,1743957045906,-379.13007135,0.0005424,2]
[357257869,1743957900638,250.0,0.00019,2]
[357257870,1743957946135,-432.505213,0.0002,2]
[357257871,1743957946157,-300.0,0.00021,2]
[357257872,1743957946177,-350.0,0.00023,2]
[357257873,1743957946197,-150.0,0.00034548,10]
[357257874,1743957946221,-222.42396897,0.000393,29]
[357257875,1743958037224,-168.49,0.00026849,2]
[357257876,1743958037248,-304.62306703,0.000393,29]
[357257877,1743958037272,-103.34009463,0.0004,2]
[357257878,1743958045757,-46.65990537,0.0004,2]
[357257879,1743958045778,-500.0,0.0004,2]
[357257880,1743958045798,-150.0,0.00045,2]
[357257881,1743958045820,-606.478221,0.00052612,4]
[357257882,1743958045841,-177.22919979,0.000536,2]
[357257883,1743958045861,-5815.67795194,0.000537,2]
[357257884,1743958053143,-1334.24445895,0.000537,2]
[357257885,1743958053165,-150.0,0.000537,2]
[357257886,1743958053187,-167.79732881,0.0005424,120]
[357257887,1743958053209,-151.0,0.00054685,120]
[357257888,1743958053232,-1917.7369246,0.00054876,2]
[357257889,1743958053253,-2964.0616143,0.00054876,2]
[357257890,1743958053275,-5119.19234655,0.0005499,15]
[357257891,1743958053298,-250.0,0.00055,56]
[357257892,1743958053321,-178.145,0.00055,104]
[357257893,1743958053343,-158.09,0.00055286,2]
[357257894,1743958053365,-172.15,0.00055506,2]
[357257895,1743958053387,-250.0,0.00056,60]
[357257896,1743958053408,-143.76126873,0.00056946,120]
[357257898,1743958113928,156.41,0.00013699,2]
[357257906,1743958232111,-151.0,0.00045,120]
[357257907,1743958232123,-151.0,0.00045,120]
[357257908,1743958232133,-454.8586658,0.0005384,4]
[357257909,1743958232142,-151.0,0.0005411,120]
[357257910,1743958232152,-1044.36893188,0.00054838,2]
[357257911,1743958232164,-332.58473772,0.00054838,2]
[357257912,1743958232174,-250.0,0.00056945,15]
[357257913,1743958232183,-500.0,0.00056946,120]
[357257914,1743958232193,-500.0,0.00056946,120]
[357257915,1743958232202,-500.0,0.00056946,120]
[357257916,1743958232213,-500.0,0.00056946,120]
[357257917,1743958232222,-500.0,0.00056946,120]
[357257918,1743958232232,-500.0,0.00056946,120]
[357257919,1743958232242,-500.0,0.00056946,120]
[357257920,1743958232251,-500.0,0.00056946,120]
[357257921,1743958232261,-998.95290104,0.00056946,120]
[357257922,1743958232270,-6.23873127,0.00056946,120]
[357257923,1743958232280,-2146.4300063,0.00056964,2]
[357257924,1743958232289,-471.79362367,0.00056965,2]
[357257925,1743958232301,-644.69,0.00056965,2]
[357257926,1743958232312,-102.68616373,0.00056965,2]
[357257927,1743958232322,-1000.0,0.00057,120]
[357257928,1743958232331,-744.95496142,0.00057,120]
[357257929,1743958232341,-165.4,0.00057004,120]
[357257930,1743958232350,-156.23,0.00057049,120]
[357257931,1743958232359,-223.61369761,0.0005711,2]
[357257932,1743958232375,-1139.45182614,0.0005711,2]
[357258019,1743958238106,-261.98304324,0.0005711,2]
[357258020,1743958238214,-1988.20084679,0.0005711,2]
[357258042,1743958240374,-293.56526593,0.0005711,2]
[357258043,1743958240412,-346.28969999,0.0005711,2]
[357258059,1743958243672,-150.0,0.0005711,2]
[357258060,1743958243682,-19646.8956203,0.0005711,2]
[357258061,1743958243691,-198.89,0.00057135,2]
[357258063,1743958243700,-150.0,0.00057154,7]
[357258065,1743958243710,-200.0,0.00057161,2]
[357258066,1743958243719,-260.2,0.00057167,30]
[357258068,1743958243728,-200.0,0.00057197,30]
[357258069,1743958243738,-158.43,0.00057231,2]
[357258070,1743958243748,-934.78,0.00057282,2]
[357258071,1743958243757,-150.0,0.00057309,2]
[357258072,1743958243767,-1000.0,0.000575,120]
[357258073,1743958243776,-1000.0,0.00057676,120]
[357258074,1743958243785,-1641.49,0.0005791,2]
[357258075,1743958243795,-500.0,0.00058,120]
[357258076,1743958243804,-1000.0,0.00058,120]
[357258077,1743958243814,-158.09,0.00059196,2]
[357258078,1743958243823,-172.15,0.00059207,2]
[357258079,1743958243833,-1000.0,0.000596,120]
[357258080,1743958243842,-1224.6596697,0.00059744,120]
[357258081,1743958243851,-1893.9511,0.0005979,2]
[357258082,1743958243861,-1224.6596697,0.00059794,120]
[357258083,1743958243870,-1022.4793,0.000598,2]
[357258084,1743958243882,-500.0,0.000598,120]
[357258085,1743958243891,-190.8924,0.000598,2]
[357258086,1743958243902,-151.0,0.00059808,2]
[357258087,1743958243911,-241.0,0.00059843,9]
[357258088,1743958243921,-1224.6596697,0.00059843,120]
[357258089,1743958243930,-326.42930993,0.00059844,61]
[357258090,1743958243940,-910.94430533,0.00059844,61]
[357258091,1743958243952,-28733.53882001,0.00059844,61]
[357258092,1743958243963,-889.77323113,0.00059844,61]
[357258093,1743958243975,-3103.3582,0.00059844,61]
[357258094,1743958243986,-4868.73469167,0.00059844,61]
[357258095,1743958244002,-15647.9418436,0.00059844,61]
[357258096,1743958246028,-920.109766,0.00059844,61]
[357258097,1743958246323,-26.50146569,0.00059844,61]
[357258107,1743959131147,-850.907315,0.000393,29]
[357258108,1743959131168,-151.0,0.00042855,2]
[357258109,1743959131189,-210.77,0.00042855,2]
[357258110,1743959131210,-151.0,0.00043331,2]
[357258111,1743959131231,-79.99471184,0.00043647,2]
[357258112,1743959172118,2900.0,0.00039397,120]
[357258113,1743959232077,-196.08,0.00026849,2]
[357258114,1743959232099,-159.66804757,0.00032646,2]
[357258115,1743959232128,-36.41195243,0.00032646,2]
[357258116,1743959232149,-196.08,0.00038443,2]
[357258117,1743959232171,-12.0356585,0.00043,120]
[357258118,1743959239127,-151.0,0.00042922,2]
[357258119,1743959239152,-337.9643415,0.00043,120]
[357258120,1743959239175,-196.08,0.00044239,2]
[357258121,1743959239199,-151.0,0.00045,120]
[357258122,1743959239222,-151.0,0.00045,120]
[357258123,1743959239244,-157.0,0.0005,120]
[357258124,1743959239269,-200.0,0.0005,120]
[357258125,1743959239291,-196.08,0.00050036,2]
[357258126,1743959239312,-155.0,0.000505,120]
[357258127,1743959239335,-4810.16501685,0.00051,120]
[357258128,1743959250118,-151.0,0.00043555,2]
[357258129,1743959250147,-358.77498315,0.00051,120]
[357258130,1743959250179,-157.0,0.00052,120]
[357258131,1743959250206,-729.6908202,0.000529,2]
[357258132,1743959254105,-2184.29407909,0.000529,2]
[357258144,1743959436737,-151.0,0.00043663,2]
[357258145,1743959436747,-151.0,0.00043702,2]
[357258146,1743959436757,-151.0,0.00043702,2]
[357258147,1743959436766,-151.0,0.00043702,2]
[357258148,1743959436776,-92.577021,0.00043702,2]
[357258149,1743959436791,-58.422979,0.00043702,2]
[357258150,1743959436801,-553.38295183,0.0005,2]
[357258151,1743959436811,-2621.81,0.00051,120]
[357258152,1743959436821,-171.04699373,0.000529,2]
[357258153,1743959436831,-155.0,0.00053,120]
[357258154,1743959436840,-157.0,0.00054,120]
[357258155,1743959436850,-151.0,0.0005411,120]
[357258156,1743959436860,-750.6813,0.00054616,2]
[357258157,1743959436869,-3589.73693022,0.00054717,2]
[357258158,1743959436881,-660.14281952,0.00054717,2]
[357258169,1743959438222,-645.88753668,0.00054717,2]
[357258170,1743959438277,-283.97531689,0.00054717,2]
[357258171,1743959438288,-7773.21457678,0.00054717,2]
[357258172,1743959438300,-316.31600004,0.00054717,2]
[357258173,1743959438332,-1067.09428223,0.00054717,2]
[357258174,1743959438344,-5569.97452503,0.00054717,2]
[357258175,1743959438356,-3993.65801261,0.00054717,2]
[357258176,1743959438366,-150.0,0.00054787,7]
[357258177,1743959438376,-572.41679793,0.000548,2]
[357258178,1743959438387,-415.71766542,0.00054899,120]
[357258179,1743959438396,-199.78463851,0.00054899,120]
[357258180,1743959438406,-400.62820237,0.00054899,120]
[357258181,1743959438417,-218.75054913,0.000549,15]
[357258182,1743959438430,-545.54455733,0.000549,80]
[357258183,1743959438440,-7328.05671181,0.000549,2]
[357258217,1743959440439,-3444.40000001,0.000549,2]
[357258218,1743959440450,-17225.9003604,0.000549,2]
[357258219,1743959440498,-2086.30602778,0.000549,2]
[357258220,1743959440508,-411.6558,0.000549,2]
[357258221,1743959440518,-1000.0,0.00054951,120]
[357258222,1743959440527,-294.87421659,0.0005499,2]
[357258223,1743959440538,-500.0,0.00054998,120]
[357258224,1743959440548,-500.0,0.00054998,120]
[357258225,1743959440558,-500.0,0.00054998,120]
[357258226,1743959440567,-167.9367791,0.00054998,120]
[357258227,1743959440702,-500.0,0.00054998,120]
[357258228,1743959440713,-500.0,0.00054998,120]
[357258229,1743959440723,-500.0,0.00054998,120]
[357258230,1743959440733,-500.0,0.00054998,120]
[357258231,1743959440743,-500.0,0.00054998,120]
[357258232,1743959440754,-74.06345348,0.00054998,120]
[357258233,1743959440770,-425.93654652,0.00054998,120]
[357258234,1743959440781,-500.0,0.00054998,120]
[357258235,1743959440791,-500.0,0.00054998,120]
[357258236,1743959440802,-500.0,0.00054998,120]
[357258237,1743959440812,-500.0,0.00054998,120]
[357258239,1743959440822,-500.0,0.00054998,120]
[357258241,1743959440832,-500.0,0.00054998,120]
[357258243,1743959440842,-500.0,0.00054998,120]
[357258244,1743959440853,-500.0,0.00054998,120]
[357258245,1743959440864,-500.0,0.00054998,120]
[357258247,1743959440874,-500.0,0.00054998,120]
[357258249,1743959440883,-163.21465496,0.00054999,61]
[357258251,1743959440893,-18245.84279172,0.00054999,61]
[357258253,1743959440905,-56944.98159757,0.00054999,61]
[357258255,1743959440918,-6625.63002839,0.00054999,61]
[357258257,1743959440931,-613.54215981,0.00054999,61]
[357258261,1743959440954,-362.75000733,0.00054999,61]
[357258263,1743959440966,-442.3267026,0.00054999,61]
[357258265,1743959440978,-22733.15495319,0.00054999,61]
[357258300,1743959443283,-1609.8126,0.00054999,61]
[357258301,1743959443295,-11535.66880182,0.00054999,61]
[357258306,1743959443824,-1382.35683863,0.00054999,61]
[357258308,1743959443833,-6439.5971521,0.00055,2]
[357258311,1743959443854,-424.55426396,0.00055,2]
[357258313,1743959443866,-48029.69909007,0.00055,2]
[357258315,1743959443878,-13300.66945376,0.00055,2]
[357258318,1743959443891,-28682.06823999,0.00055,2]
[357258321,1743959443907,-15303.89164792,0.00055,2]
[357258344,1743959446385,-17344.00000021,0.00055,2]
[357258345,1743959446396,-260.49576412,0.00055,2]
[357258346,1743959446597,-509.27412,0.00055,2]
[357258362,1743959923160,432.28418889,0.00039397,30]
[357258363,1743959930377,379.993556,0.00039397,30]
[357258364,1743959981094,250.0,0.00039403,120]
[357258365,1743960320745,913.59821338,0.00039399,120]
[357258366,1743960321575,300.61148483,0.00039399,120]
[357258367,1743960337453,259.71691327,0.00039399,30]
[357258368,1743960339116,288.61551145,0.00039399,120]
[357258369,1743960342914,979.58535734,0.00039399,120]
[357258370,1743960348579,359.26124983,0.00039399,120]
[357258371,1743960358098,-1431.20126713,0.0001995,2]
[357258372,1743960363098,769.62437683,0.00039399,90]
[357258373,1743960365549,156.47422291,0.00039399,120]
[357258374,1743960370808,824.82444922,0.00039399,120]
[357258375,1743960372076,317.12048806,0.00039399,60]
[357258376,1743960375891,427.76614065,0.00039399,30]
[357258377,1743960379171,208.63908605,0.00039399,120]
[357258378,1743960383479,224.67909699,0.00039399,120]
[357258379,1743960394209,305.56042954,0.00039399,60]
[357258380,1743960416880,216.50840444,0.00039399,120]
[357258381,1743960429415,235.97802667,0.00039399,30]
[357258383,1743960436096,-363.92801982,0.0001995,2]
[357258384,1743960437570,508.58454696,0.00039399,120]
[357258385,1743960443105,-602.53663533,0.0001995,2]
[357258386,1743960443131,-168.69705804,0.00024,5]